lending/lending_fUSD_20250913
["ID","MTS","AMOUNT","RATE_DAILY","PERIOD"]
[385349889,1757790699395,-1021.66,0.00027945,2]
[385349890,1757790699404,-796.82,0.00027945,2]
[385349891,1757790699415,-786.29,0.00027945,2]
[385349892,1757790699425,-400.0,0.00027945,2]
[385349893,1757790699434,-923.85,0.00027945,2]
[385349894,1757790699443,-585.84,0.00027945,2]
[385349895,1757790699451,-1254.84,0.00027945,2]
[385349896,1757790699464,-1026.54,0.00027945,2]
[385349897,1757790699473,-400.0,0.00027945,2]
[385349898,1757790699483,-400.0,0.00027945,2]
[385349899,1757790699491,-492.79,0.00027945,2]
[385349900,1757790699501,-517.98259717,0.00027945,2]
[385349901,1757790699511,-2328.06,0.00027945,2]
[385349902,1757790699520,-400.0,0.00027945,2]
[385349903,1757790699529,-1854.12,0.00027945,2]
[385349904,1757790699539,-400.0,0.00027945,2]
[385349905,1757790699548,-400.0,0.00027945,2]
[385349906,1757790699557,-3059.22,0.00027945,2]
[385349907,1757790699566,-402.93255009,0.00027945,2]
[385349908,1757790699575,-1159.49,0.00027945,2]
[385349909,1757790699583,-1000.0,0.00027945,2]
[385349910,1757790699593,-400.0,0.00027945,2]
[385349911,1757790699602,-618.58,0.00027945,2]
[385349912,1757790699610,-401.77255962,0.00027945,2]
[385349913,1757790699619,-400.0,0.00027945,2]
[385349914,1757790699628,-400.0,0.00027945,2]
[385349915,1757790699638,-400.0,0.00027945,2]
[385349916,1757790699647,-1262.94,0.00027945,2]
[385349917,1757790699656,-400.0,0.00027945,2]
[385349918,1757790699665,-400.0,0.00027945,2]
[385349919,1757790699675,-400.0,0.00027945,2]
[385349920,1757790699683,-400.0,0.00027945,2]
[385349921,1757790699692,-400.0,0.00027945,2]
[385349922,1757790699701,-1602.35,0.00027945,2]
[385349923,1757790699710,-666.27,0.00027945,2]
[385349924,1757790699719,-2778.98,0.00027945,2]
[385349925,1757790699731,-400.0,0.00027945,2]
[385349926,1757790699741,-438.09,0.00027945,2]
[385349927,1757790699753,-344.99,0.00027945,2]
[385349928,1757790699762,-500.0,0.00027945,2]
[385349929,1757790699771,-523.76,0.00027945,2]
[385349930,1757790699780,-400.0,0.00027945,2]
[385349931,1757790699789,-734.11,0.00027945,2]
[385349932,1757790699798,-634.16,0.00027945,2]
[385349933,1757790699806,-400.0,0.00027945,2]
[385349934,1757790699815,-887.05,0.00027945,2]
[385349935,1757790699824,-1288.99,0.00027945,2]
[385349936,1757790699833,-2431.97,0.00027945,2]
[385349937,1757790699842,-400.0,0.00027945,2]
[385349938,1757790699851,-942.86,0.00027945,2]
[385349939,1757790699861,-400.0,0.00027945,2]
[385349940,1757790699870,-400.0,0.00027945,2]
[385349941,1757790699879,-1448.36,0.00027945,2]
[385349942,1757790699887,-1697.7,0.00027945,2]
[385349943,1757790699896,-409.37597497,0.00027945,2]
[385349944,1757790699905,-488.5,0.00027945,2]
[385349945,1757790699914,-655.13,0.00027945,2]
[385349946,1757790699922,-693.6,0.00027945,2]
[385349947,1757790699931,-400.0,0.00027945,2]
[385349948,1757790699940,-985.78,0.00027945,2]
[385349949,1757790699948,-400.0,0.00027945,2]
[385349950,1757790699957,-914.74,0.00027945,2]
[385349951,1757790699966,-400.0,0.00027945,2]
[385349952,1757790699979,-3119.56,0.00027945,2]
[385349953,1757790699993,-869.51,0.00027945,2]
[385349954,1757790700005,-1199.53,0.00027945,2]
[385349955,1757790700017,-400.0,0.00027945,2]
[385349956,1757790700031,-492.5,0.00027945,2]
[385349957,1757790700045,-400.0,0.00027945,2]
[385349958,1757790700060,-400.0,0.00027945,2]
[385349959,1757790700072,-683.66,0.00027945,2]
[385349960,1757790700083,-400.0,0.00027945,2]
[385349961,1757790700096,-1155.29,0.00027945,2]
[385349962,1757790700110,-1010.79,0.00027945,2]
[385349963,1757790700123,-403.82202363,0.00027945,2]
[385349964,1757790700136,-655.9,0.00027945,2]
[385349965,1757790700151,-400.0,0.00027945,2]
[385349966,1757790700163,-1130.65,0.00027945,2]
[385349967,1757790700178,-400.0,0.00027945,2]
[385349968,1757790700192,-450.64,0.00027945,2]
[385349969,1757790700205,-536.28,0.00027945,2]
[385349970,1757790700217,-436.85677633,0.00027945,2]
[385349971,1757790700230,-1727.97,0.00027945,2]
[385349972,1757790700244,-920.05,0.00027945,2]
[385349973,1757790700257,-971.87,0.00027945,2]
[385349974,1757790700268,-1049.74,0.00027945,2]
[385349975,1757790700279,-400.0,0.00027945,2]
[385349976,1757790700294,-807.81,0.00027945,2]
[385349977,1757790700308,-401.82519822,0.00027945,2]
[385349978,1757790700319,-1540.01,0.00027945,2]
[385349979,1757790700331,-767.61,0.00027945,2]
[385349980,1757790700344,-1074.98,0.00027945,2]
[385349981,1757790700357,-400.0,0.00027945,2]
[385349982,1757790700370,-400.0,0.00027945,2]
[385349983,1757790700383,-400.0,0.00027945,2]
[385349984,1757790700394,-400.0,0.00027945,2]
[385349985,1757790700407,-400.0,0.00027945,2]
[385349986,1757790700420,-721.19,0.00027945,2]
[385349987,1757790700432,-1380.97,0.00027945,2]
[385349988,1757790700444,-843.61,0.00027945,2]
[385349989,1757790700456,-400.0,0.00027945,2]
[385349990,1757790700472,-400.0,0.00027945,2]
[385349991,1757790700485,-798.34,0.00027945,2]
[385349992,1757790700499,-400.0,0.00027945,2]
[385349993,1757790700512,-1507.18,0.00027945,2]
[385349994,1757790700524,-736.94,0.00027945,2]
[385349995,1757790700537,-8779.55,0.00027945,2]
[385349996,1757790700548,-400.0,0.00027945,2]
[385349997,1757790700560,-594.63,0.00027945,2]
[385349998,1757790700572,-400.0,0.00027945,2]
[385349999,1757790700584,-1003.9,0.00027945,2]
[385350000,1757790700596,-506.79,0.00027945,2]
[385350001,1757790700608,-405.67578835,0.00027945,2]
[385350002,1757790700620,-729.26,0.00027945,2]
[385350003,1757790700632,-400.0,0.00027945,2]
[385350004,1757790700644,-2622.41,0.00027945,2]
[385350005,1757790700655,-666.01,0.00027945,2]
[385350006,1757790700668,-649.71,0.00027945,2]
[385350007,1757790700680,-400.0,0.00027945,2]
[385350008,1757790700692,-400.0,0.00027945,2]
[385350009,1757790700704,-400.0,0.00027945,2]
[385350010,1757790700717,-400.00002949,0.00027945,2]
[385350011,1757790700728,-813.26,0.00027945,2]
[385350012,1757790700740,-752.66,0.00027945,2]
[385350013,1757790700751,-400.0,0.00027945,2]
[385350014,1757790700763,-500.0,0.00027945,2]
[385350015,1757790700775,-1034.54,0.00027945,2]
[385350016,1757790700787,-851.12,0.00027945,2]
[385350017,1757790700799,-745.71,0.00027945,2]
[385350018,1757790700811,-400.0,0.00027945,2]
[385350019,1757790700823,-2504.84,0.00027945,2]
[385350020,1757790700835,-436.15,0.00027945,2]
[385350021,1757790700848,-931.13,0.00027945,2]
[385350022,1757790700860,-990.05,0.00027945,2]
[385350023,1757790700871,-955.65,0.00027945,2]
[385350024,1757790700883,-400.0,0.00027945,2]
[385350025,1757790700895,-615.48,0.00027945,2]
[385350026,1757790700908,-400.0,0.00027945,2]
[385350027,1757790700920,-405.58481813,0.00027945,2]
[385350028,1757790700932,-400.0,0.00027945,2]
[385350029,1757790700944,-400.0,0.00027945,2]
[385350030,1757790700956,-400.0,0.00027945,2]
[385350031,1757790700968,-334.0,0.00027968,2]
[385350032,1757790700981,-500.0,0.00027973,5]
[385350033,1757790700994,-2000.0,0.00028,2]
[385350034,1757790701006,-561.51,0.00028004,2]
[385350035,1757790701019,-561.51,0.00028004,2]
[385350036,1757790701031,-561.51,0.00028004,2]
[385350037,1757790701045,-561.51,0.00028004,2]
[385350038,1757790701059,-561.7316998,0.00028004,2]
[385350039,1757790701071,-151.03,0.00028012,2]
[385350040,1757790701083,-408.60878744,0.00028013,2]
[385350041,1757790701095,-2027.45,0.00028019,2]
[385350042,1757790701107,-2027.45,0.00028019,2]
[385350043,1757790701119,-2027.45,0.00028019,2]
[385350044,1757790701131,-2027.45,0.00028019,2]
[385350045,1757790701142,-2027.58,0.00028019,2]
[385350046,1757790701154,-500.0,0.00028047,2]
[385350047,1757790701166,-350.0,0.00028047,2]
[385350048,1757790701177,-200.0,0.00028047,2]
[385350049,1757790701189,-250.0,0.00028047,2]
[385350050,1757790701200,-500.0,0.00028047,2]
[385350051,1757790701212,-335.0,0.00028145,7]
[385350052,1757790701223,-1389.17,0.00028217,2]
[385350053,1757790701236,-1389.17,0.00028217,2]
[385350054,1757790701248,-1389.17,0.00028217,2]
[385350055,1757790701260,-1389.17,0.00028217,2]
[385350056,1757790701271,-1389.39058747,0.00028217,2]
[385350057,1757790701282,-836.29,0.00028217,2]
[385350058,1757790701293,-836.29,0.00028217,2]
[385350059,1757790701305,-836.29,0.00028217,2]
[385350060,1757790701318,-836.29,0.00028217,2]
[385350061,1757790701329,-836.45157555,0.00028217,2]
[385350062,1757790701342,-400.0,0.00028219,2]
[385350063,1757790701353,-400.0,0.00028219,2]
[385350064,1757790701365,-272.64205999,0.00028219,2]
[385350065,1757790701376,-400.0,0.00028219,2]
[385350066,1757790701387,-403.48,0.00028219,2]
[385350067,1757790701400,-400.0,0.00028219,2]
[385350068,1757790701412,-400.0,0.00028219,2]
[385350069,1757790701424,-699.06,0.00028219,2]
[385350070,1757790701435,-888.74,0.00028219,2]
[385350071,1757790701446,-400.0,0.00028219,2]
[385350072,1757790701459,-1067.33,0.00028219,2]
[385350073,1757790701474,-400.0,0.00028219,2]
[385350074,1757790701486,-400.0,0.00028219,2]
[385350075,1757790701499,-494.9,0.00028219,2]
[385350076,1757790701511,-400.0,0.00028219,2]
[385350077,1757790701523,-403.91429711,0.00028219,2]
[385350078,1757790701535,-400.0,0.00028219,2]
[385350079,1757790701547,-1011.1,0.00028219,2]
[385350080,1757790701559,-400.0,0.00028219,2]
[385350081,1757790701571,-400.0,0.00028219,2]
[385350082,1757790701582,-400.0,0.00028219,2]
[385350083,1757790701594,-405.37964083,0.00028219,2]
[385350084,1757790701606,-411.04,0.00028219,2]
[385350085,1757790701618,-400.0,0.00028219,2]
[385350086,1757790701631,-400.0,0.00028219,2]
[385350087,1757790701642,-400.0,0.00028219,2]
[385350088,1757790701654,-400.0,0.00028219,2]
[385350089,1757790701665,-400.0,0.00028219,2]
[385350090,1757790701676,-400.0,0.00028219,2]
[385350091,1757790701687,-400.0,0.00028219,2]
[385350092,1757790701703,-400.0,0.00028219,2]
[385350093,1757790701714,-400.0,0.00028219,2]
[385350094,1757790701725,-400.0,0.00028219,2]
[385350095,1757790701736,-400.0,0.00028219,2]
[385350096,1757790701748,-416.86284243,0.00028219,2]
[385350097,1757790701759,-400.0,0.00028219,2]
[385350098,1757790701770,-403.69443264,0.00028219,2]
[385350099,1757790701781,-400.0,0.00028219,2]
[385350100,1757790701793,-400.0,0.00028219,2]
[385350101,1757790701804,-436.55,0.00028219,2]
[385350102,1757790701815,-415.46,0.00028219,2]
[385350103,1757790701826,-400.0,0.00028219,2]
[385350104,1757790701838,-400.0,0.00028219,2]
[385350105,1757790701849,-402.75675132,0.00028219,2]
[385350106,1757790701860,-400.0,0.00028219,2]
[385350107,1757790701871,-1222.47,0.00028219,2]
[385350108,1757790701883,-400.0,0.00028219,2]
[385350109,1757790701894,-403.82472906,0.00028219,2]
[385350110,1757790701905,-400.0,0.00028219,2]
[385350111,1757790701916,-622.37,0.00028219,2]
[385350112,1757790701928,-751.49,0.00028219,2]
[385350113,1757790701939,-500.0,0.00028219,2]
[385350114,1757790701950,-400.0,0.00028219,2]
[385350115,1757790701966,-407.84944343,0.00028219,2]
[385350116,1757790701976,-512.06,0.00028219,2]
[385350117,1757790701987,-400.0,0.00028219,2]
[385350118,1757790701999,-400.0,0.00028219,2]
[385350119,1757790702009,-400.0,0.00028219,2]
[385350120,1757790702020,-400.0,0.00028219,2]
[385350121,1757790702031,-400.0,0.00028219,2]
[385350122,1757790702042,-400.0,0.00028219,2]
[385350123,1757790702052,-400.0,0.00028219,2]
[385350124,1757790702063,-400.0,0.00028219,2]
[385350125,1757790702074,-400.0,0.00028219,2]
[385350126,1757790702085,-516.89,0.00028219,2]
[385350127,1757790702096,-400.0,0.00028219,2]
[385350128,1757790702107,-572.28,0.00028219,2]
[385350129,1757790702118,-400.0,0.00028219,2]
[385350130,1757790702130,-400.0,0.00028219,2]
[385350131,1757790702140,-400.0,0.00028219,2]
[385350132,1757790702151,-400.0,0.00028219,2]
[385350133,1757790702162,-400.0,0.00028219,2]
[385350134,1757790702174,-179.2877708,0.00028219,2]
[385350135,1757790702184,-400.0,0.00028219,2]
[385350136,1757790702196,-400.0,0.00028219,2]
[385350137,1757790702207,-400.0,0.00028219,2]
[385350138,1757790702220,-405.34,0.00028219,2]
[385350139,1757790702231,-892.3,0.00028219,2]
[385350140,1757790702242,-400.0,0.00028219,2]
[385350141,1757790702253,-400.0,0.00028219,2]
[385350142,1757790702264,-2090.35,0.00028219,2]
[385350143,1757790702275,-400.0,0.00028219,2]
[385350144,1757790702287,-445.77,0.00028219,2]
[385350145,1757790702298,-849.51,0.00028219,2]
[385350146,1757790702308,-400.0,0.00028219,2]
[385350147,1757790702320,-400.0,0.00028219,2]
[385350148,1757790702331,-400.0,0.00028219,2]
[385350149,1757790702342,-764.33,0.00028219,2]
[385350150,1757790702354,-812.38,0.00028219,2]
[385350151,1757790702366,-400.0,0.00028219,2]
[385350152,1757790702377,-579.38,0.00028219,2]
[385350153,1757790702388,-400.0,0.00028219,2]
[385350154,1757790702400,-428.31142314,0.00028219,2]
[385350155,1757790702411,-400.0,0.00028219,2]
[385350156,1757790702422,-400.0,0.00028219,2]
[385350157,1757790702434,-400.0,0.00028219,2]
[385350158,1757790702445,-400.0,0.00028219,2]
[385350159,1757790702456,-400.0,0.00028219,2]
[385350160,1757790702471,-400.0,0.00028219,2]
[385350161,1757790702482,-400.0,0.00028219,2]
[385350162,1757790702493,-400.0,0.00028219,2]
[385350163,1757790702504,-400.0,0.00028219,2]
[385350164,1757790702515,-400.0,0.00028219,2]
[385350165,1757790702526,-400.0,0.00028219,2]
[385350166,1757790702537,-400.0,0.00028219,2]
[385350167,1757790702548,-400.0,0.00028219,2]
[385350168,1757790702559,-400.0,0.00028219,2]
[385350169,1757790702570,-400.0,0.00028219,2]
[385350170,1757790702581,-400.0,0.00028219,2]
[385350171,1757790702591,-400.0,0.00028219,2]
[385350172,1757790702603,-400.0,0.00028219,2]
[385350173,1757790702613,-1141.14,0.00028219,2]
[385350174,1757790702625,-593.32,0.00028219,2]
[385350175,1757790702636,-400.0,0.00028219,2]
[385350176,1757790702648,-400.0,0.00028219,2]
[385350177,1757790702659,-400.0,0.00028219,2]
[385350178,1757790702671,-762.02,0.00028219,2]
[385350179,1757790702682,-400.0,0.00028219,2]
[385350180,1757790702694,-400.0,0.00028219,2]
[385350181,1757790702705,-633.2,0.00028219,2]
[385350182,1757790702715,-400.0,0.00028219,2]
[385350183,1757790702726,-400.0,0.00028219,2]
[385350184,1757790702738,-400.0,0.00028219,2]
[385350185,1757790702749,-400.0,0.00028219,2]
[385350186,1757790702760,-400.0,0.00028219,2]
[385350187,1757790702771,-548.72,0.00028219,2]
[385350188,1757790702782,-400.0,0.00028219,2]
[385350189,1757790702793,-400.0,0.00028219,2]
[385350190,1757790702811,-400.0,0.00028219,2]
[385350191,1757790702823,-400.0,0.00028219,2]
[385350192,1757790702834,-400.0,0.00028219,2]
[385350193,1757790702845,-400.0,0.00028219,2]
[385350194,1757790702857,-400.0,0.00028219,2]
[385350195,1757790702868,-400.0,0.00028219,2]
[385350196,1757790702880,-411.96,0.00028219,2]
[385350197,1757790702892,-653.34,0.00028219,2]
[385350198,1757790702903,-400.0,0.00028219,2]
[385350199,1757790702915,-400.0,0.00028219,2]
[385350200,1757790702926,-891.73,0.00028219,2]
[385350201,1757790702938,-400.0,0.00028219,2]
[385350202,1757790702950,-405.93606036,0.00028219,2]
[385350203,1757790702961,-1354.32,0.00028219,2]
[385350204,1757790702972,-598.23,0.00028219,2]
[385350205,1757790702983,-518.98,0.00028219,2]
[385350206,1757790702995,-400.0,0.00028219,2]
[385350207,1757790703006,-925.24,0.00028219,2]
[385350208,1757790703017,-400.0,0.00028219,2]
[385350209,1757790703028,-400.0,0.00028219,2]
[385350210,1757790703039,-722.44,0.00028219,2]
[385350211,1757790703051,-400.0,0.00028219,2]
[385350212,1757790703062,-400.0,0.00028219,2]
[385350213,1757790703073,-400.0,0.00028219,2]
[385350214,1757790703084,-400.0,0.00028219,2]
[385350215,1757790703095,-400.0,0.00028219,2]
[385350216,1757790703106,-506.66,0.00028219,2]
[385350217,1757790703118,-194.03557619,0.00028219,2]
[385350218,1757790703619,-400.0,0.00028219,2]
[385350219,1757790703639,-400.0,0.00028219,2]
[385350220,1757790703650,-400.0,0.00028219,2]
[385350221,1757790703659,-400.0,0.00028219,2]
[385350222,1757790703668,-400.0,0.00028219,2]
[385350223,1757790703678,-400.0,0.00028219,2]
[385350224,1757790703687,-1909.11,0.00028219,2]
[385350225,1757790703696,-400.0,0.00028219,2]
[385350226,1757790703706,-400.0,0.00028219,2]
[385350227,1757790703715,-400.0,0.00028219,2]
[385350228,1757790703724,-886.75,0.00028219,2]
[385350229,1757790703733,-400.0,0.00028219,2]
[385350230,1757790703742,-400.0,0.00028219,2]
[385350231,1757790703751,-400.0,0.00028219,2]
[385350232,1757790703761,-400.0,0.00028219,2]
[385350233,1757790703770,-400.0,0.00028219,2]
[385350234,1757790703779,-400.0,0.00028219,2]
[385350235,1757790703788,-400.0,0.00028219,2]
[385350236,1757790703798,-408.93441957,0.00028219,2]
[385350237,1757790703807,-400.0,0.00028219,2]
[385350238,1757790703816,-400.0,0.00028219,2]
[385350239,1757790703826,-1138.1,0.00028219,2]
[385350240,1757790703835,-400.0,0.00028219,2]
[385350241,1757790703844,-400.0,0.00028219,2]
[385350242,1757790703854,-400.0,0.00028219,2]
[385350243,1757790703863,-400.0,0.00028219,2]
[385350244,1757790703872,-403.50843105,0.00028219,2]
[385350245,1757790703881,-400.0,0.00028219,2]
[385350246,1757790703891,-400.0,0.00028219,2]
[385350247,1757790703900,-576.48,0.00028219,2]
[385350248,1757790703910,-2782.51,0.00028219,2]
[385350249,1757790703919,-400.0,0.00028219,2]
[385350250,1757790703928,-400.0,0.00028219,2]
[385350251,1757790703937,-712.7,0.00028219,2]
[385350252,1757790703946,-432.04519927,0.00028219,2]
[385350253,1757790703955,-400.0,0.00028219,2]
[385350254,1757790703965,-400.0,0.00028219,2]
[385350255,1757790703974,-400.0,0.00028219,2]
[385350256,1757790703983,-400.0,0.00028219,2]
[385350257,1757790703994,-400.0,0.00028219,2]
[385350258,1757790704003,-400.0,0.00028219,2]
[385350259,1757790704012,-400.0,0.00028219,2]
[385350260,1757790704021,-400.0,0.00028219,2]
[385350261,1757790704031,-400.0,0.00028219,2]
[385350262,1757790704040,-400.0,0.00028219,2]
[385350263,1757790704049,-400.0,0.00028219,2]
[385350264,1757790704059,-749.03,0.00028219,2]
[385350265,1757790704068,-227.48787721,0.00028219,2]
[385350266,1757790704077,-476.93,0.00028219,2]
[385350267,1757790704087,-400.0,0.00028219,2]
[385350268,1757790704096,-400.0,0.00028219,2]
[385350269,1757790704106,-493.89157136,0.00028219,2]
[385350270,1757790704115,-400.0,0.00028219,2]
[385350271,1757790704125,-778.01,0.00028219,2]
[385350272,1757790704135,-652.17,0.00028219,2]
[385350273,1757790704144,-400.0,0.00028219,2]
[385350274,1757790704154,-1095.32,0.00028219,2]
[385350275,1757790704163,-404.06936983,0.00028219,2]
[385350276,1757790704172,-450.34,0.00028219,2]
[385350277,1757790704181,-400.0,0.00028219,2]
[385350278,1757790704190,-623.72,0.00028219,2]
[385350279,1757790704200,-400.0,0.00028219,2]
[385350280,1757790704209,-400.0,0.00028219,2]
[385350281,1757790704219,-522.52,0.00028219,2]
[385350282,1757790704228,-1025.68,0.00028219,2]
[385350283,1757790704237,-400.0,0.00028219,2]
[385350284,1757790704246,-400.0,0.00028219,2]
[385350285,1757790704255,-400.0,0.00028219,2]
[385350286,1757790704264,-420.38575305,0.00028219,2]
[385350287,1757790704274,-1547.47,0.00028219,2]
[385350288,1757790704283,-400.0,0.00028219,2]
[385350289,1757790704293,-268.05637438,0.00028219,2]
[385350290,1757790704302,-400.0,0.00028219,2]
[385350291,1757790704311,-452.08,0.00028219,2]
[385350292,1757790704321,-400.0,0.00028219,2]
[385350293,1757790704331,-400.0,0.00028219,2]
[385350294,1757790704341,-954.04,0.00028219,2]
[385350295,1757790704350,-972.47,0.00028219,2]
[385350296,1757790704360,-400.0,0.00028219,2]
[385350297,1757790704369,-440.6,0.00028219,2]
[385350298,1757790704379,-400.0,0.00028219,2]
[385350299,1757790704388,-400.0,0.00028219,2]
[385350300,1757790704397,-400.0,0.00028219,2]
[385350301,1757790704407,-400.0,0.00028219,2]
[385350302,1757790704417,-400.0,0.00028219,2]
[385350303,1757790704426,-400.0,0.00028219,2]
[385350304,1757790704436,-400.0,0.00028219,2]
[385350305,1757790704446,-1107.3,0.00028219,2]
[385350306,1757790704455,-1360.89,0.00028219,2]
[385350307,1757790704467,-401.36520812,0.00028219,2]
[385350308,1757790704476,-535.93545206,0.00028219,2]
[385350309,1757790704485,-400.0,0.00028219,2]
[385350310,1757790704495,-400.0,0.00028219,2]
[385350311,1757790704504,-400.0,0.00028219,2]
[385350312,1757790704513,-438.49,0.00028219,2]
[385350313,1757790704522,-511.89,0.00028219,2]
[385350314,1757790704531,-400.0,0.00028219,2]
[385350315,1757790704541,-400.0,0.00028219,2]
[385350316,1757790704550,-875.02,0.00028219,2]
[385350317,1757790704559,-400.0,0.00028219,2]
[385350318,1757790704569,-441.06,0.00028219,2]
[385350319,1757790704578,-540.34,0.00028219,2]
[385350320,1757790704587,-432.57,0.00028219,2]
[385350321,1757790704596,-605.1,0.00028219,2]
[385350322,1757790704606,-400.0,0.00028219,2]
[385350323,1757790704615,-400.0,0.00028219,2]
[385350324,1757790704624,-400.0,0.00028219,2]
[385350325,1757790704634,-400.0,0.00028219,2]
[385350326,1757790704644,-400.0,0.00028219,2]
[385350327,1757790704653,-979.03,0.00028219,2]
[385350328,1757790704663,-400.0,0.00028219,2]
[385350329,1757790704672,-400.0,0.00028219,2]
[385350330,1757790704681,-639.66,0.00028219,2]
[385350331,1757790704691,-204.87652165,0.00028219,2]
[385350332,1757790704701,-400.0,0.00028219,2]
[385350333,1757790704712,-743.92,0.00028219,2]
[385350334,1757790704722,-400.0,0.00028219,2]
[385350335,1757790704732,-400.0,0.00028219,2]
[385350336,1757790704742,-400.0,0.00028219,2]
[385350337,1757790704751,-549.77,0.00028219,2]
[385350338,1757790704761,-400.0,0.00028219,2]
[385350339,1757790704771,-400.0,0.00028219,2]
[385350340,1757790704780,-400.0,0.00028219,2]
[385350341,1757790704790,-867.52,0.00028219,2]
[385350342,1757790704799,-400.0,0.00028219,2]
[385350343,1757790704809,-757.51,0.00028219,2]
[385350344,1757790704819,-400.0,0.00028219,2]
[385350345,1757790704828,-400.0,0.00028219,2]
[385350346,1757790704839,-1369.33,0.00028219,2]
[385350347,1757790704848,-976.5,0.00028219,2]
[385350348,1757790704858,-714.21,0.00028219,2]
[385350349,1757790704867,-1200.51,0.00028219,2]
[385350350,1757790704877,-429.54,0.00028219,2]
[385350351,1757790704886,-931.9,0.00028219,2]
[385350352,1757790704895,-404.95778434,0.00028219,2]
[385350353,1757790704905,-410.20057521,0.00028219,2]
[385350354,1757790704915,-400.0,0.00028219,2]
[385350355,1757790704925,-400.0,0.00028219,2]
[385350356,1757790704935,-767.06,0.00028219,2]
[385350357,1757790704944,-522.36,0.00028219,2]
[385350358,1757790704954,-464.29,0.00028219,2]
[385350359,1757790704963,-400.0,0.00028219,2]
[385350360,1757790704973,-400.0,0.00028219,2]
[385350361,1757790704982,-1050.24,0.00028219,2]
[385350362,1757790704991,-400.0,0.00028219,2]
[385350363,1757790705001,-406.67519495,0.00028219,2]
[385350364,1757790705012,-403.70507249,0.00028219,2]
[385350365,1757790705022,-712.0,0.00028219,2]
[385350366,1757790705031,-409.77121387,0.00028219,2]
[385350367,1757790705040,-770.1,0.00028219,2]
[385350368,1757790705050,-1340.61,0.00028219,2]
[385350369,1757790705059,-400.0,0.00028219,2]
[385350370,1757790705069,-503.78,0.00028219,2]
[385350371,1757790705078,-744.56,0.00028219,2]
[385350372,1757790705088,-933.78,0.00028219,2]
[385350373,1757790705097,-400.0,0.00028219,2]
[385350374,1757790705106,-917.05,0.00028219,2]
[385350375,1757790705115,-601.03,0.00028219,2]
[385350376,1757790705124,-400.0,0.00028219,2]
[385350377,1757790705135,-404.04432793,0.00028219,2]
[385350378,1757790705144,-1166.06,0.00028219,2]
[385350379,1757790705153,-408.67,0.00028219,2]
[385350380,1757790705162,-400.0,0.00028219,2]
[385350381,1757790705171,-744.95,0.00028219,2]
[385350382,1757790705181,-962.63,0.00028219,2]
[385350383,1757790705190,-400.0,0.00028219,2]
[385350384,1757790705199,-697.23,0.00028219,2]
[385350385,1757790705209,-944.97,0.00028219,2]
[385350386,1757790705219,-1128.5,0.00028219,2]
[385350387,1757790705229,-400.0,0.00028219,2]
[385350388,1757790705238,-400.0,0.00028219,2]